Workbook

Sheet Instrucciones
B2: INVENTARIO NACIONAL DE GASES DE EFECTO INVERNADERO 2012
B3: Sector Desechos - Subcategoría de Tratamiento y eliminación de aguas residuales domésticas
B5: INSTRUCCIONES
B7: ALCANCE
B8: La subcategoría de Tratamiento y eliminación de aguas residuales domésticas, involucra a todas las emisiones de gases de efecto invernadero que se generan por la descomposición de aguas residuales domésticas en condiciones anaeróbicas. Se contabilizan además las emisiones procedentes de las excretas humanas.
B11: El Tratamiento y eliminación de aguas residuales domésticas, comprende las siguientes fuentes: - Aguas residuales domésticas. - Excretas humanas
B14: METODOLOGÍA DE CALCULO
B16: Directrices del IPCC para Inventarios Nacionales del IPCC - 1996 (GL 1996) en lo que respecta a aguas residuales
B17: Orientación del IPCC sobre las buenas prácticas y la gestión de la incertidumbre en los inventarios nacionales de Gases de Efecto Invernadero (OBP 2000)
B18: Sector: Desechos
F19: Para el cálculo de Emisiones GEI:
F24: Nivel 1: El método mas básico que es aplicado cuando se utiliza niveles de actividad disponibles y factores de emisión por defecto de las guías del IPCC.
F25: Nivel 2: Método intermedio de cálculo en términos de esfuerzo y sofisticación, en la mayoría de casos se basa en el uso de niveles de actividad disponible y factores de emisión mas detallados o específicos.
F27: Nivel 3: El método mas exigente en términos de complejidad y requerimientos de datos, usualmente implica el uso de modelos y ecuaciones complejas.
B30: ESTRUCTURA DE LA HOJA DE CALCULO
B32: Las hojas de cálculo, en este libro, están agrupadas por los siguientes colores:
B33: Color de hoja | C33: Descripción
C34: Caracterización de datos
C35: Información base de nivel de actividad
C36: Información procesada de nivel de actividad
C37: Propiedades, Factores de conversión y Factores de emisión de GEI
C38: Hojas de estimaciones de emisiones GEI por fuente
C39: Resultados GEI para Tratamiento y eliminación de aguas residuales domésticas
B41: Los grupos de hojas se relacionan como se muestra en el diagrama:
B65: ABREVIATURAS
B67: GEI | C67: : Gases de Efecto Invernadero
B68: FE | C68: : Factor de Emisión
B69: INGEI | C69: : Inventario Nacional de Gases de Efecto Invernadero
B70: CH4 | C70: : Metano
B71: N2O | C71: : Oxido Nitroso
B72: CO2e | C72: : Dióxido de carbono equivalente

Sheet Características datos
B2: Caracterización de Datos - Sector Desechos (Residuos sólidos)
B3: Definición IPCC: se refiere a la definición -literal o abreviada- de las GL1996. En algunos casos la definición abreviada se acompaña de un comentario (columna G) con la definición literal
B4: Definición INGEI: se refiere a la definición de las GL1996, ajustada a la realidad o circunstancias del Perú. Este ajuste se identificó en el desarrollo del INGEI y mantiene el concepto general de la definición original en las GL1996
C5: No aplica o no se considera en este INGEI
B7: Categorización | F7: Fuente de emisión / captura | G7: Definición | H7: Nivel de actividad | I7: Unidad | J7: TIER/Nivel | K7: Fuente de información | L7: Uso de la información | M7: Gases de GEI generados por el nivel de actividad | N7: Comentarios | O7: Hojas relacionada
B8: 6 | F8: Desechos
C9: 6B | F9: Tratamiento de aguas residuales | G9: Definición IPCC: Metano y óxido nitroso generados por la descomposición de materia orgánica en las aguas.residuales. Definición INGEI: metano y óxido nitroso generados por la descomposición de materia orgánica en las aguas residuales industriales y domésticas .
D10: 6B2 | F10: Tratamiento y eliminación de aguas residuales domésticas | G10: Definición IPCC: Emisiones de metano que se generan en los tratamientos de aguas residuales y lodos procedentes de las viviendas y fuentes comerciales. Se consideran además las emisiones de oxido nitroso procedentes de las excretas humanas vertidas en ambientes acuáticos. Definición INGEI: Emisiones de metano generadas en los procesos de tratamiento de aguas residuales domésticas.
E11: 6B2a | F11: Aguas residuales domésticas | G11: Definición IPCC: Manejo de aguas residuales y lodo, de fuentes domésticas y comerciales (incluyendo residuos humanos), a través de la recolección y tratamiento de aguas residuales, letrinas o descarga en fuentes de agua. Definición INGEI: Emisiones de metano generadas en los procesos de tratamiento de aguas residuales domésticas, considerando los vertimientos al alcatarillado público. | H11: Población con sistema de alcantarillado | I11: número de personas en miles | J11: 1 | K11: Superintendencia Nacional de Servicios de Saneamiento (SUNASS) | L11: Sirven para determinar en su conjunto las emisiones de metano generadas por el tratamiento de las aguas residuales domésticas. | M11: CH4 | O11: InfoProc 6B2a
H12: Porcentaje de aguas residuales tratadas | I12: % | J12: 1 | K12: Superintendencia Nacional de Servicios de Saneamiento (SUNASS)
H13: Demanda Biológica de Oxígeno (DBO) | I13: Kg DBO/1000 pesonas∙año | J13: 1 | K13: Reglamento Nacional de Edificaciones – Norma OS.090: Plantas de Tratamiento de Aguas Residuales. (Debe hacerse un ajuste para llevarlo a las unidades requeridas). | O13: Prop. y Fact. de conversión
H14: Población del ámbito de la EPS | I14: número de personas en miles | J14: 1 | K14: Superintendencia Nacional de Servicios de Saneamiento (SUNASS) | L14: La población de ámbito de la EPS y el Porcentaje de cobertura de alcantarillado, son usados para estimar la Población con sistema de alcantarillado, en caso esta información no está disponible: Población con sistema de alcantarillado = Población de ámbito de la EPS x Porcentaje de cobertura de alcantarillado | O14: InfoBase 6B2a
H15: Porcentaje de cobertura de alcantarillado | I15: % | J15: 1 | K15: Superintendencia Nacional de Servicios de Saneamiento (SUNASS)
E16: 6B2b | F16: Excretas humanas | G16: Definición IPCC: Las emisiones de N2O de las excretas humanas, están directamente relacionadas al ciclo del nitrógeno en la Agricultura. Definición INGEI: se considera las emisiones indirectas de N2O por la ingesta de proteinas en la población. Estas emisiones no son consideradas en Agricultura y forman parte de las "Aguas residuales domésticas", que solo contabilizan CH4. | H16: Población nacional | I16: número de personas en miles | K16: Instituto Nacional de Estadísticas e Informática (INEI) | L16: Sirve para determinar la cantidad de nitrógeno contenida en la orina humana | M16: N2O | O16: infoBase6B2b(población)
H17: Consumo de proteínas | I17: g/persona∙día | J17: 1 | K17: Organización de las Naciones Unidas para la Agricultura y la Alimentación (FAO) | O17: InfoBase 6B2b

Sheet InfoBase 6B2a
B2: Información Básica: Cobertura de tratamiento de aguas residuales
B4: DATOS DE LA INFORMACIÓN BASE
B5: Código | C5: 6B
B6: Subcodigo | C6: 6B2a
B7: Información | C7: Nivel de actividad | D7: Cobertura de tratamiento de aguas residuales domésticas en poblaciones urbanas
C8: Documento | D8: Las EPS y su desarrollo 2013 - Datos 2012
C9: Título | D9: Porcentaje de tratamiento de aguas residuales, cobertura de alcantarillado, población ámbito EPS y población con alcantarillado
C10: Subtitulo
B11: Ubicación especifica | C11: Pagina | D11: 18 | F11: Cuadro | I11: Anexo
B12: Vínculo | C12: http://www.sunass.gob.pe/doc/eps_desarrollo_2013.pdf
B13: Institución | C13: Superintendencia Nacional de Servicios de Saneamiento (SUNASS) | N13: Relación de esta hoja, con otras:
B16: Código | C16: Región | D16: Empresa Prestadora de Servicio | E16: Tratamiento de aguas residuales | F16: Población ámbito EPS | G16: Población con alcantarillado
E17: 2012
B18: 1 | C18: Amazonas | D18: EMUSAP Amazonas | E18: 0 | F18: 25211 | G18: 18596
B19: 7 | C19: Amazonas | D19: EPSSMU S.R.Ltda. | E19: 0 | F19: 30598 | G19: 21397
B20: 35 | C20: Amazonas | D20: EMAPAB S.R.LTDA. | E20: 0 | F20: 25646 | G20: 14231
B21: 14 | C21: Áncash | D21: SEDACHIMBOTE S.A. | E21: 0.5636 | F21: 375564 | G21: 329036
B22: 33 | C22: Áncash | D22: EPS CHAVIN S.A. | E22: 0 | F22: 117313 | G22: 92281
B23: 43 | C23: Apurímac | D23: EMUSAP ABANCAY S.A. | E23: 0 | F23: 46194 | G23: 42010
B24: 44 | C24: Apurímac | D24: EMSAP CHANKA S.R.L. | E24: 0 | F24: 31081 | G24: 16308
B25: 51 | C25: Arequipa | D25: SEDAPAR S.R.L. (Rioja) | E25: 0 | F25: 20214 | G25: 9428
B26: 15 | C26: Ayacucho | D26: EPSASA | E26: 0.9998 | F26: 219609 | G26: 177695
B27: 11 | C27: Cajamarca | D27: SEDACAJ S.A. | E27: 0 | F27: 181254 | G27: 146686
B28: 45 | C28: Cajamarca | D28: EPS MARAÑON S.R.L. | E28: 0.9601 | F28: 94896 | G28: 46615
B29: 9 | C29: Cerro de Pasco | D29: EMAPA Pasco S.A. | E29: 0 | F29: 73706 | G29: 43957
B30: 31 | C30: Cusco | D30: SEDACUSCO S.A. | E30: 0.9385 | F30: 386787 | G30: 361569
B31: 34 | C31: Cusco | D31: EMAQ S.R.LTDA. | E31: 0 | F31: 26088 | G31: 19122
B32: 38 | C32: Cusco | D32: EMPSSAPAL S.A. | E32: 0 | F32: 53180 | G32: 43313
B33: 47 | C33: Cusco | D33: EMSAPA CALCA S.R.L. | E33: 0 | F33: 11394 | G33: 10705
B34: 21 | C34: Huancavelica | D34: EMAPA HUANCAVELICA S.A.C | E34: 0 | F34: 33642 | G34: 27200
B35: 2 | C35: Huánuco | D35: SEDA Huánuco S.A. | E35: 0 | F35: 229278 | G35: 173058
B36: 10 | C36: Ica | D36: EMAPISCO S.A. | E36: 1 | F36: 81330 | G36: 72382
B37: 13 | C37: Ica | D37: EMAPAVIGS S.A.C. | E37: 0.9191 | F37: 36688 | G37: 27405
B38: 18 | C38: Ica | D38: SEMAPACH S.A. | E38: 0.9977 | F38: 178511 | G38: 140448
B39: 37 | C39: Ica | D39: EMAPICA S.A. | E39: 0.9997 | F39: 200650 | G39: 165905
B40: 19 | C40: Junín | D40: EPS Selva Central S.A. | E40: 0.2543 | F40: 116040 | G40: 44942
B41: 39 | C41: Junín | D41: EPS SIERRA CENTRAL S.R.L. | E41: 0 | F41: 39816 | G41: 33927
B42: 42 | C42: Junín | D42: EPS MANTARO S.A. | E42: 0.7730142857 | F42: 75795 | G42: 43344
B43: 46 | C43: Junín | D43: SEDAM HUANCAYO S.A.C. | E43: 0 | F43: 366404 | G43: 256874
B44: 50 | C44: Junín | D44: EMSAPA YAULI S.RL.L. | E44: 0 | F44: 24659 | G44: 8310
B45: 28 | C45: La Libertad | D45: SEDALIB S.A. | E45: 0.5818 | F45: 929142 | G45: 717866
B46: 29 | C46: Lambayeque | D46: EPSEL S.A. | E46: 0.9058 | F46: 854997 | G46: 687072
B47: 5 | C47: Lima | D47: EMAPA Cañete S.A. | E47: 0.0863 | F47: 176650 | G47: 106776
B48: 24 | C48: Lima | D48: EMAPA HUARAL S.A. | E48: 0 | F48: 83988 | G48: 58155
B49: 25 | C49: Lima | D49: EMAPA HUACHO S.A. | E49: 0 | F49: 111520 | G49: 104212
B50: 26 | C50: Lima | D50: SEDAPAL S.A. | E50: 0.2127 | F50: 9203927 | G50: 8270375
B51: 36 | C51: Lima | D51: SEMAPA BARRANCA S.A. | E51: 0 | F51: 73964 | G51: 57480
B52: 4 | C52: Loreto | D52: EPS SEDALORETO S.A. | E52: 0 | F52: 469461 | G52: 240747
B53: 17 | C53: Madre de Dios | D53: EMAPAT S.R.Ltda. | E53: 0 | F53: 66793 | G53: 31812
B54: 22 | C54: Moquegua | D54: EPS MOQUEGUA S.A. | E54: 0.5182 | F54: 50621 | G54: 44965
B55: 27 | C55: Moquegua | D55: EPS ILO S.A. | E55: 0.1483 | F55: 66342 | G55: 61472
B56: 32 | C56: Piura | D56: EPS GRAU S.A. | E56: 0.4547 | F56: 1031158 | G56: 754616
B57: 6 | C57: Puno | D57: EMSA Puno S.A. | E57: 0.5922 | F57: 168810 | G57: 144976
B58: 23 | C58: Puno | D58: EMAPA Y S.R.L. | E58: 0 | F58: 11250 | G58: 9085
B59: 40 | C59: Puno | D59: EPS NOR PUNO S.A. | E59: 0.451 | F59: 22191 | G59: 16932
B60: 41 | C60: Puno | D60: SEDAJULIACA S.A. | E60: 0.5376 | F60: 244538 | G60: 200604
B61: 48 | C61: Puno | D61: EPS AGUAS DEL ALTIPLANO | E61: 0.3793 | F61: 18525 | G61: 19671
B62: 16 | C62: San Martín | D62: EMAPA San Martín S.A. | E62: 0 | F62: 165126 | G62: 132242
B63: 20 | C63: San Martín | D63: EMAPA MOYOBAMBA S.R.LTDA. | E63: 0 | F63: 50742 | G63: 32878
B64: 30 | C64: San Martín | D64: SEDAPAR S.A. | E64: 0.1497 | F64: 1023309 | G64: 823513
B65: 12 | C65: Tacna | D65: EPS TACNA S.A. | E65: 0.7747 | F65: 267099 | G65: 254034
B66: 8 | C66: Tumbes | D66: Aguas de Tumbes | E66: 0.2609 | F66: 194180 | G66: 99980
B67: 3 | C67: Ucayali | D67: EMAPACOP S.A. | E67: 0 | F67: 219297 | G67: 135996

Sheet InfoBase 6B2b (población)
B2: Información Básica: Población nacional según región
B4: DATOS DE LA INFORMACIÓN BASE
B5: Código | C5: 6A y 6B2
B6: Subcodigo
B7: Información | C7: Nivel de actividad | D7: Población según región/provincia/distrito
C8: Documento | D8: -
C9: Título | D9: Poblaciónal 2012
C10: Subtitulo
B11: Ubicación especifica | C11: Pagina | F11: Cuadro | I11: Anexo
B12: Vínculo | C12: http://proyectos.inei.gob.pe/web/poblacion/#
C13: Visitado en mayo 2015
B14: Institución | C14: Instituto Nacional de Estadísticas e Informática
C18: Población total oficial del Perú: | D18: 30135875 | H18: Relación de esta hoja, con otras:

Sheet InfoBase 6B2b
B2: Consumo diario de proteínas
B4: DATOS DE LA INFORMACIÓN BASE
B5: Código | C5: 6B
B6: Subcodigo | C6: 6B2a
B7: Información | C7: Nivel de actividad | D7: Consumo de proteína per cápita
C8: Documento | D8: Perfil de País: Indicadores de Seguridad Alimentaria
C9: Título | D9: Suministro Alimentario para el Consumo Humano
C10: Subtitulo | D10: Consumo total de proteínas
B11: Ubicación especifica | C11: Pagina | D11: 1 | F11: Cuadro | I11: Anexo
B12: Vínculo | C12: http://www.fao.org/fileadmin/templates/ess/documents/food_security_statistics/country_profiles/esp/Peru_S.pdf
C13: Visitado en mayo 2015
B14: Institución | C14: ORGANIZACION DE LAS NACIONES UNIDAS PARA LA AGRICULTURA Y LA ALIMENTACION - FAO
B17: Porcentaje de proteínas | D17: 67 | E17: g/persona·día | G17: Relación de esta hoja, con otras:

Sheet InfoProc 6B2a
B2: Información Procesada: Población nacional según región (millares)
H3: Relación de esta hoja, con otras:
B4: Código | C4: Región | D4: Empresa Prestadora de Servicio | E4: Tratamiento de aguas residuales [%] | F4: Población con alcantarillado [miles]
B6: ='InfoBase 6B2a'!B18 -> 1 | C6: ='InfoBase 6B2a'!C18 -> Amazonas | D6: ='InfoBase 6B2a'!D18 -> EMUSAP Amazonas | E6: =VLOOKUP(D6,'InfoBase 6B2a'!$D$18:$G$67,2,FALSE) -> 0 | F6: =VLOOKUP(D6,'InfoBase 6B2a'!$D$18:$G$67,4,FALSE)/1000 -> 18.596
B7: ='InfoBase 6B2a'!B19 -> 7 | C7: ='InfoBase 6B2a'!C19 -> Amazonas | D7: ='InfoBase 6B2a'!D19 -> EPSSMU S.R.Ltda. | E7: =VLOOKUP(D7,'InfoBase 6B2a'!$D$18:$G$67,2,FALSE) -> 0 | F7: =VLOOKUP(D7,'InfoBase 6B2a'!$D$18:$G$67,4,FALSE)/1000 -> 21.397
B8: ='InfoBase 6B2a'!B20 -> 35 | C8: ='InfoBase 6B2a'!C20 -> Amazonas | D8: ='InfoBase 6B2a'!D20 -> EMAPAB S.R.LTDA. | E8: =VLOOKUP(D8,'InfoBase 6B2a'!$D$18:$G$67,2,FALSE) -> 0 | F8: =VLOOKUP(D8,'InfoBase 6B2a'!$D$18:$G$67,4,FALSE)/1000 -> 14.231
B9: ='InfoBase 6B2a'!B21 -> 14 | C9: ='InfoBase 6B2a'!C21 -> Áncash | D9: ='InfoBase 6B2a'!D21 -> SEDACHIMBOTE S.A. | E9: =VLOOKUP(D9,'InfoBase 6B2a'!$D$18:$G$67,2,FALSE) -> 0.5636 | F9: =VLOOKUP(D9,'InfoBase 6B2a'!$D$18:$G$67,4,FALSE)/1000 -> 329.036
B10: ='InfoBase 6B2a'!B22 -> 33 | C10: ='InfoBase 6B2a'!C22 -> Áncash | D10: ='InfoBase 6B2a'!D22 -> EPS CHAVIN S.A. | E10: =VLOOKUP(D10,'InfoBase 6B2a'!$D$18:$G$67,2,FALSE) -> 0 | F10: =VLOOKUP(D10,'InfoBase 6B2a'!$D$18:$G$67,4,FALSE)/1000 -> 92.281
B11: ='InfoBase 6B2a'!B23 -> 43 | C11: ='InfoBase 6B2a'!C23 -> Apurímac | D11: ='InfoBase 6B2a'!D23 -> EMUSAP ABANCAY S.A. | E11: =VLOOKUP(D11,'InfoBase 6B2a'!$D$18:$G$67,2,FALSE) -> 0 | F11: =VLOOKUP(D11,'InfoBase 6B2a'!$D$18:$G$67,4,FALSE)/1000 -> 42.01
B12: ='InfoBase 6B2a'!B24 -> 44 | C12: ='InfoBase 6B2a'!C24 -> Apurímac | D12: ='InfoBase 6B2a'!D24 -> EMSAP CHANKA S.R.L. | E12: =VLOOKUP(D12,'InfoBase 6B2a'!$D$18:$G$67,2,FALSE) -> 0 | F12: =VLOOKUP(D12,'InfoBase 6B2a'!$D$18:$G$67,4,FALSE)/1000 -> 16.308
B13: ='InfoBase 6B2a'!B25 -> 51 | C13: ='InfoBase 6B2a'!C25 -> Arequipa | D13: ='InfoBase 6B2a'!D25 -> SEDAPAR S.R.L. (Rioja) | E13: =VLOOKUP(D13,'InfoBase 6B2a'!$D$18:$G$67,2,FALSE) -> 0 | F13: =VLOOKUP(D13,'InfoBase 6B2a'!$D$18:$G$67,4,FALSE)/1000 -> 9.428
B14: ='InfoBase 6B2a'!B26 -> 15 | C14: ='InfoBase 6B2a'!C26 -> Ayacucho | D14: ='InfoBase 6B2a'!D26 -> EPSASA | E14: =VLOOKUP(D14,'InfoBase 6B2a'!$D$18:$G$67,2,FALSE) -> 0.9998 | F14: =VLOOKUP(D14,'InfoBase 6B2a'!$D$18:$G$67,4,FALSE)/1000 -> 177.695
B15: ='InfoBase 6B2a'!B27 -> 11 | C15: ='InfoBase 6B2a'!C27 -> Cajamarca | D15: ='InfoBase 6B2a'!D27 -> SEDACAJ S.A. | E15: =VLOOKUP(D15,'InfoBase 6B2a'!$D$18:$G$67,2,FALSE) -> 0 | F15: =VLOOKUP(D15,'InfoBase 6B2a'!$D$18:$G$67,4,FALSE)/1000 -> 146.686
B16: ='InfoBase 6B2a'!B28 -> 45 | C16: ='InfoBase 6B2a'!C28 -> Cajamarca | D16: ='InfoBase 6B2a'!D28 -> EPS MARAÑON S.R.L. | E16: =VLOOKUP(D16,'InfoBase 6B2a'!$D$18:$G$67,2,FALSE) -> 0.9601 | F16: =VLOOKUP(D16,'InfoBase 6B2a'!$D$18:$G$67,4,FALSE)/1000 -> 46.615
B17: ='InfoBase 6B2a'!B29 -> 9 | C17: ='InfoBase 6B2a'!C29 -> Cerro de Pasco | D17: ='InfoBase 6B2a'!D29 -> EMAPA Pasco S.A. | E17: =VLOOKUP(D17,'InfoBase 6B2a'!$D$18:$G$67,2,FALSE) -> 0 | F17: =VLOOKUP(D17,'InfoBase 6B2a'!$D$18:$G$67,4,FALSE)/1000 -> 43.957
B18: ='InfoBase 6B2a'!B30 -> 31 | C18: ='InfoBase 6B2a'!C30 -> Cusco | D18: ='InfoBase 6B2a'!D30 -> SEDACUSCO S.A. | E18: =VLOOKUP(D18,'InfoBase 6B2a'!$D$18:$G$67,2,FALSE) -> 0.9385 | F18: =VLOOKUP(D18,'InfoBase 6B2a'!$D$18:$G$67,4,FALSE)/1000 -> 361.569
B19: ='InfoBase 6B2a'!B31 -> 34 | C19: ='InfoBase 6B2a'!C31 -> Cusco | D19: ='InfoBase 6B2a'!D31 -> EMAQ S.R.LTDA. | E19: =VLOOKUP(D19,'InfoBase 6B2a'!$D$18:$G$67,2,FALSE) -> 0 | F19: =VLOOKUP(D19,'InfoBase 6B2a'!$D$18:$G$67,4,FALSE)/1000 -> 19.122
B20: ='InfoBase 6B2a'!B32 -> 38 | C20: ='InfoBase 6B2a'!C32 -> Cusco | D20: ='InfoBase 6B2a'!D32 -> EMPSSAPAL S.A. | E20: =VLOOKUP(D20,'InfoBase 6B2a'!$D$18:$G$67,2,FALSE) -> 0 | F20: =VLOOKUP(D20,'InfoBase 6B2a'!$D$18:$G$67,4,FALSE)/1000 -> 43.313
B21: ='InfoBase 6B2a'!B33 -> 47 | C21: ='InfoBase 6B2a'!C33 -> Cusco | D21: ='InfoBase 6B2a'!D33 -> EMSAPA CALCA S.R.L. | E21: =VLOOKUP(D21,'InfoBase 6B2a'!$D$18:$G$67,2,FALSE) -> 0 | F21: =VLOOKUP(D21,'InfoBase 6B2a'!$D$18:$G$67,4,FALSE)/1000 -> 10.705
B22: ='InfoBase 6B2a'!B34 -> 21 | C22: ='InfoBase 6B2a'!C34 -> Huancavelica | D22: ='InfoBase 6B2a'!D34 -> EMAPA HUANCAVELICA S.A.C | E22: =VLOOKUP(D22,'InfoBase 6B2a'!$D$18:$G$67,2,FALSE) -> 0 | F22: =VLOOKUP(D22,'InfoBase 6B2a'!$D$18:$G$67,4,FALSE)/1000 -> 27.2
B23: ='InfoBase 6B2a'!B35 -> 2 | C23: ='InfoBase 6B2a'!C35 -> Huánuco | D23: ='InfoBase 6B2a'!D35 -> SEDA Huánuco S.A. | E23: =VLOOKUP(D23,'InfoBase 6B2a'!$D$18:$G$67,2,FALSE) -> 0 | F23: =VLOOKUP(D23,'InfoBase 6B2a'!$D$18:$G$67,4,FALSE)/1000 -> 173.058
B24: ='InfoBase 6B2a'!B36 -> 10 | C24: ='InfoBase 6B2a'!C36 -> Ica | D24: ='InfoBase 6B2a'!D36 -> EMAPISCO S.A. | E24: =VLOOKUP(D24,'InfoBase 6B2a'!$D$18:$G$67,2,FALSE) -> 1 | F24: =VLOOKUP(D24,'InfoBase 6B2a'!$D$18:$G$67,4,FALSE)/1000 -> 72.382
B25: ='InfoBase 6B2a'!B37 -> 13 | C25: ='InfoBase 6B2a'!C37 -> Ica | D25: ='InfoBase 6B2a'!D37 -> EMAPAVIGS S.A.C. | E25: =VLOOKUP(D25,'InfoBase 6B2a'!$D$18:$G$67,2,FALSE) -> 0.9191 | F25: =VLOOKUP(D25,'InfoBase 6B2a'!$D$18:$G$67,4,FALSE)/1000 -> 27.405
B26: ='InfoBase 6B2a'!B38 -> 18 | C26: ='InfoBase 6B2a'!C38 -> Ica | D26: ='InfoBase 6B2a'!D38 -> SEMAPACH S.A. | E26: =VLOOKUP(D26,'InfoBase 6B2a'!$D$18:$G$67,2,FALSE) -> 0.9977 | F26: =VLOOKUP(D26,'InfoBase 6B2a'!$D$18:$G$67,4,FALSE)/1000 -> 140.448
B27: ='InfoBase 6B2a'!B39 -> 37 | C27: ='InfoBase 6B2a'!C39 -> Ica | D27: ='InfoBase 6B2a'!D39 -> EMAPICA S.A. | E27: =VLOOKUP(D27,'InfoBase 6B2a'!$D$18:$G$67,2,FALSE) -> 0.9997 | F27: =VLOOKUP(D27,'InfoBase 6B2a'!$D$18:$G$67,4,FALSE)/1000 -> 165.905
B28: ='InfoBase 6B2a'!B40 -> 19 | C28: ='InfoBase 6B2a'!C40 -> Junín | D28: ='InfoBase 6B2a'!D40 -> EPS Selva Central S.A. | E28: =VLOOKUP(D28,'InfoBase 6B2a'!$D$18:$G$67,2,FALSE) -> 0.2543 | F28: =VLOOKUP(D28,'InfoBase 6B2a'!$D$18:$G$67,4,FALSE)/1000 -> 44.942
B29: ='InfoBase 6B2a'!B41 -> 39 | C29: ='InfoBase 6B2a'!C41 -> Junín | D29: ='InfoBase 6B2a'!D41 -> EPS SIERRA CENTRAL S.R.L. | E29: =VLOOKUP(D29,'InfoBase 6B2a'!$D$18:$G$67,2,FALSE) -> 0 | F29: =VLOOKUP(D29,'InfoBase 6B2a'!$D$18:$G$67,4,FALSE)/1000 -> 33.927
B30: ='InfoBase 6B2a'!B42 -> 42 | C30: ='InfoBase 6B2a'!C42 -> Junín | D30: ='InfoBase 6B2a'!D42 -> EPS MANTARO S.A. | E30: =VLOOKUP(D30,'InfoBase 6B2a'!$D$18:$G$67,2,FALSE) -> 0.7730142857 | F30: =VLOOKUP(D30,'InfoBase 6B2a'!$D$18:$G$67,4,FALSE)/1000 -> 43.344
B31: ='InfoBase 6B2a'!B43 -> 46 | C31: ='InfoBase 6B2a'!C43 -> Junín | D31: ='InfoBase 6B2a'!D43 -> SEDAM HUANCAYO S.A.C. | E31: =VLOOKUP(D31,'InfoBase 6B2a'!$D$18:$G$67,2,FALSE) -> 0 | F31: =VLOOKUP(D31,'InfoBase 6B2a'!$D$18:$G$67,4,FALSE)/1000 -> 256.874
B32: ='InfoBase 6B2a'!B44 -> 50 | C32: ='InfoBase 6B2a'!C44 -> Junín | D32: ='InfoBase 6B2a'!D44 -> EMSAPA YAULI S.RL.L. | E32: =VLOOKUP(D32,'InfoBase 6B2a'!$D$18:$G$67,2,FALSE) -> 0 | F32: =VLOOKUP(D32,'InfoBase 6B2a'!$D$18:$G$67,4,FALSE)/1000 -> 8.31
B33: ='InfoBase 6B2a'!B45 -> 28 | C33: ='InfoBase 6B2a'!C45 -> La Libertad | D33: ='InfoBase 6B2a'!D45 -> SEDALIB S.A. | E33: =VLOOKUP(D33,'InfoBase 6B2a'!$D$18:$G$67,2,FALSE) -> 0.5818 | F33: =VLOOKUP(D33,'InfoBase 6B2a'!$D$18:$G$67,4,FALSE)/1000 -> 717.866
B34: ='InfoBase 6B2a'!B46 -> 29 | C34: ='InfoBase 6B2a'!C46 -> Lambayeque | D34: ='InfoBase 6B2a'!D46 -> EPSEL S.A. | E34: =VLOOKUP(D34,'InfoBase 6B2a'!$D$18:$G$67,2,FALSE) -> 0.9058 | F34: =VLOOKUP(D34,'InfoBase 6B2a'!$D$18:$G$67,4,FALSE)/1000 -> 687.072
B35: ='InfoBase 6B2a'!B47 -> 5 | C35: ='InfoBase 6B2a'!C47 -> Lima | D35: ='InfoBase 6B2a'!D47 -> EMAPA Cañete S.A. | E35: =VLOOKUP(D35,'InfoBase 6B2a'!$D$18:$G$67,2,FALSE) -> 0.0863 | F35: =VLOOKUP(D35,'InfoBase 6B2a'!$D$18:$G$67,4,FALSE)/1000 -> 106.776
B36: ='InfoBase 6B2a'!B48 -> 24 | C36: ='InfoBase 6B2a'!C48 -> Lima | D36: ='InfoBase 6B2a'!D48 -> EMAPA HUARAL S.A. | E36: =VLOOKUP(D36,'InfoBase 6B2a'!$D$18:$G$67,2,FALSE) -> 0 | F36: =VLOOKUP(D36,'InfoBase 6B2a'!$D$18:$G$67,4,FALSE)/1000 -> 58.155
B37: ='InfoBase 6B2a'!B49 -> 25 | C37: ='InfoBase 6B2a'!C49 -> Lima | D37: ='InfoBase 6B2a'!D49 -> EMAPA HUACHO S.A. | E37: =VLOOKUP(D37,'InfoBase 6B2a'!$D$18:$G$67,2,FALSE) -> 0 | F37: =VLOOKUP(D37,'InfoBase 6B2a'!$D$18:$G$67,4,FALSE)/1000 -> 104.212
B38: ='InfoBase 6B2a'!B50 -> 26 | C38: ='InfoBase 6B2a'!C50 -> Lima | D38: ='InfoBase 6B2a'!D50 -> SEDAPAL S.A. | E38: =VLOOKUP(D38,'InfoBase 6B2a'!$D$18:$G$67,2,FALSE) -> 0.2127 | F38: =VLOOKUP(D38,'InfoBase 6B2a'!$D$18:$G$67,4,FALSE)/1000 -> 8270.375
B39: ='InfoBase 6B2a'!B51 -> 36 | C39: ='InfoBase 6B2a'!C51 -> Lima | D39: ='InfoBase 6B2a'!D51 -> SEMAPA BARRANCA S.A. | E39: =VLOOKUP(D39,'InfoBase 6B2a'!$D$18:$G$67,2,FALSE) -> 0 | F39: =VLOOKUP(D39,'InfoBase 6B2a'!$D$18:$G$67,4,FALSE)/1000 -> 57.48
B40: ='InfoBase 6B2a'!B52 -> 4 | C40: ='InfoBase 6B2a'!C52 -> Loreto | D40: ='InfoBase 6B2a'!D52 -> EPS SEDALORETO S.A. | E40: =VLOOKUP(D40,'InfoBase 6B2a'!$D$18:$G$67,2,FALSE) -> 0 | F40: =VLOOKUP(D40,'InfoBase 6B2a'!$D$18:$G$67,4,FALSE)/1000 -> 240.747
B41: ='InfoBase 6B2a'!B53 -> 17 | C41: ='InfoBase 6B2a'!C53 -> Madre de Dios | D41: ='InfoBase 6B2a'!D53 -> EMAPAT S.R.Ltda. | E41: =VLOOKUP(D41,'InfoBase 6B2a'!$D$18:$G$67,2,FALSE) -> 0 | F41: =VLOOKUP(D41,'InfoBase 6B2a'!$D$18:$G$67,4,FALSE)/1000 -> 31.812
B42: ='InfoBase 6B2a'!B54 -> 22 | C42: ='InfoBase 6B2a'!C54 -> Moquegua | D42: ='InfoBase 6B2a'!D54 -> EPS MOQUEGUA S.A. | E42: =VLOOKUP(D42,'InfoBase 6B2a'!$D$18:$G$67,2,FALSE) -> 0.5182 | F42: =VLOOKUP(D42,'InfoBase 6B2a'!$D$18:$G$67,4,FALSE)/1000 -> 44.965
B43: ='InfoBase 6B2a'!B55 -> 27 | C43: ='InfoBase 6B2a'!C55 -> Moquegua | D43: ='InfoBase 6B2a'!D55 -> EPS ILO S.A. | E43: =VLOOKUP(D43,'InfoBase 6B2a'!$D$18:$G$67,2,FALSE) -> 0.1483 | F43: =VLOOKUP(D43,'InfoBase 6B2a'!$D$18:$G$67,4,FALSE)/1000 -> 61.472
B44: ='InfoBase 6B2a'!B56 -> 32 | C44: ='InfoBase 6B2a'!C56 -> Piura | D44: ='InfoBase 6B2a'!D56 -> EPS GRAU S.A. | E44: =VLOOKUP(D44,'InfoBase 6B2a'!$D$18:$G$67,2,FALSE) -> 0.4547 | F44: =VLOOKUP(D44,'InfoBase 6B2a'!$D$18:$G$67,4,FALSE)/1000 -> 754.616
B45: ='InfoBase 6B2a'!B57 -> 6 | C45: ='InfoBase 6B2a'!C57 -> Puno | D45: ='InfoBase 6B2a'!D57 -> EMSA Puno S.A. | E45: =VLOOKUP(D45,'InfoBase 6B2a'!$D$18:$G$67,2,FALSE) -> 0.5922 | F45: =VLOOKUP(D45,'InfoBase 6B2a'!$D$18:$G$67,4,FALSE)/1000 -> 144.976
B46: ='InfoBase 6B2a'!B58 -> 23 | C46: ='InfoBase 6B2a'!C58 -> Puno | D46: ='InfoBase 6B2a'!D58 -> EMAPA Y S.R.L. | E46: =VLOOKUP(D46,'InfoBase 6B2a'!$D$18:$G$67,2,FALSE) -> 0 | F46: =VLOOKUP(D46,'InfoBase 6B2a'!$D$18:$G$67,4,FALSE)/1000 -> 9.085
B47: ='InfoBase 6B2a'!B59 -> 40 | C47: ='InfoBase 6B2a'!C59 -> Puno | D47: ='InfoBase 6B2a'!D59 -> EPS NOR PUNO S.A. | E47: =VLOOKUP(D47,'InfoBase 6B2a'!$D$18:$G$67,2,FALSE) -> 0.451 | F47: =VLOOKUP(D47,'InfoBase 6B2a'!$D$18:$G$67,4,FALSE)/1000 -> 16.932
B48: ='InfoBase 6B2a'!B60 -> 41 | C48: ='InfoBase 6B2a'!C60 -> Puno | D48: ='InfoBase 6B2a'!D60 -> SEDAJULIACA S.A. | E48: =VLOOKUP(D48,'InfoBase 6B2a'!$D$18:$G$67,2,FALSE) -> 0.5376 | F48: =VLOOKUP(D48,'InfoBase 6B2a'!$D$18:$G$67,4,FALSE)/1000 -> 200.604
B49: ='InfoBase 6B2a'!B61 -> 48 | C49: ='InfoBase 6B2a'!C61 -> Puno | D49: ='InfoBase 6B2a'!D61 -> EPS AGUAS DEL ALTIPLANO | E49: =VLOOKUP(D49,'InfoBase 6B2a'!$D$18:$G$67,2,FALSE) -> 0.3793 | F49: =VLOOKUP(D49,'InfoBase 6B2a'!$D$18:$G$67,4,FALSE)/1000 -> 19.671
B50: ='InfoBase 6B2a'!B62 -> 16 | C50: ='InfoBase 6B2a'!C62 -> San Martín | D50: ='InfoBase 6B2a'!D62 -> EMAPA San Martín S.A. | E50: =VLOOKUP(D50,'InfoBase 6B2a'!$D$18:$G$67,2,FALSE) -> 0 | F50: =VLOOKUP(D50,'InfoBase 6B2a'!$D$18:$G$67,4,FALSE)/1000 -> 132.242
B51: ='InfoBase 6B2a'!B63 -> 20 | C51: ='InfoBase 6B2a'!C63 -> San Martín | D51: ='InfoBase 6B2a'!D63 -> EMAPA MOYOBAMBA S.R.LTDA. | E51: =VLOOKUP(D51,'InfoBase 6B2a'!$D$18:$G$67,2,FALSE) -> 0 | F51: =VLOOKUP(D51,'InfoBase 6B2a'!$D$18:$G$67,4,FALSE)/1000 -> 32.878
B52: ='InfoBase 6B2a'!B64 -> 30 | C52: ='InfoBase 6B2a'!C64 -> San Martín | D52: ='InfoBase 6B2a'!D64 -> SEDAPAR S.A. | E52: =VLOOKUP(D52,'InfoBase 6B2a'!$D$18:$G$67,2,FALSE) -> 0.1497 | F52: =VLOOKUP(D52,'InfoBase 6B2a'!$D$18:$G$67,4,FALSE)/1000 -> 823.513
B53: ='InfoBase 6B2a'!B65 -> 12 | C53: ='InfoBase 6B2a'!C65 -> Tacna | D53: ='InfoBase 6B2a'!D65 -> EPS TACNA S.A. | E53: =VLOOKUP(D53,'InfoBase 6B2a'!$D$18:$G$67,2,FALSE) -> 0.7747 | F53: =VLOOKUP(D53,'InfoBase 6B2a'!$D$18:$G$67,4,FALSE)/1000 -> 254.034
B54: ='InfoBase 6B2a'!B66 -> 8 | C54: ='InfoBase 6B2a'!C66 -> Tumbes | D54: ='InfoBase 6B2a'!D66 -> Aguas de Tumbes | E54: =VLOOKUP(D54,'InfoBase 6B2a'!$D$18:$G$67,2,FALSE) -> 0.2609 | F54: =VLOOKUP(D54,'InfoBase 6B2a'!$D$18:$G$67,4,FALSE)/1000 -> 99.98
B55: ='InfoBase 6B2a'!B67 -> 3 | C55: ='InfoBase 6B2a'!C67 -> Ucayali | D55: ='InfoBase 6B2a'!D67 -> EMAPACOP S.A. | E55: =VLOOKUP(D55,'InfoBase 6B2a'!$D$18:$G$67,2,FALSE) -> 0 | F55: =VLOOKUP(D55,'InfoBase 6B2a'!$D$18:$G$67,4,FALSE)/1000 -> 135.996
B59: Demanda Bioquímica de Oxígeno (DBO)
B61: DBO5 | C61: ='Prop. y Fact. de conversión'!C36*365/'Prop. y Fact. de conversión'!C17*1000 -> 18250 | D61: kg/1000 personas.año
E124: =AVERAGE('InfoBase 6B2a'!#REF!) ->  | F124: =AVERAGE('InfoBase 6B2a'!E18:E67) -> 0.2891802857

Sheet Prop. y Fact. de conversión
B2: Relación de metano/carbono y oxido nitroso/nitrógeno
B4: Peso atómico del carbono | C4: 12
B5: Peso atómico del hidrógeno | C5: 1
B6: Peso atómico del nitrógeno | C6: 14
B7: Peso atómico del oxígeno | C7: 16
B8: Fuente: Tabla periódica de los elementos
B10: Relación CH4/C | C10: =(C4+C5*4)/C4 -> 1.333333333
B13: Conversión de unidades
B15: Masa
B16: 1 tonelada | C16: 1000 | D16: kg
B17: 1 kilogramo | C17: 1000 | D17: g
B18: 1 tonelada | C18: =C16*C17 -> 1000000 | D18: g
B20: Prefijo | C20: Simbolo | D20: Factor
B21: deca | C21: da | D21: =10^1 -> 10
B22: hecto | C22: h | D22: =10^2 -> 100
B23: kilo | C23: k | D23: =10^3 -> 1000
B24: mega | C24: M | D24: =10^6 -> 1000000
B25: giga | C25: G | D25: =10^9 -> 1000000000
B26: tera | C26: T | D26: =10^12 -> 1000000000000
B27: Fuente: Sistema Internacional - Guide for the Use of the International System of Units (SI) http://physics.nist.gov/cuu/pdf/sp811.pdf
B30: Volumen
B31: 1 centimetro cúbico | C31: =1/1000 -> 0.001 | D31: l
B32: Fuente: http://www.metric-conversions.org/es/volumen/tabla-de-conversion-de-centimetros-cubicos-a-litros.htm
B34: Demanda Bioquímica de Oxígeno (DBO)
B36: DBO5 | C36: 50 | D36: g/hab.día
F68: http://www.atpplleal.com/Pujat/file/DENSIDAD%20Y%20PESO%20ESPECIFICO.pdf

Sheet FE 6B2
B2: Factor de conversión de metano para el sistema de manejo (FCM)
B4: FCM | C4: 0.8
B5: Fuente: GL 1996, cuadro 6-7, página 6.20
B7: Capacidad máxima de producción de metano (Bo)
B9: Bo | C9: 0.6 | D9: kg CH4/kg DBO
B10: Fuente: OBP 2000, página 5.18
B12: Fracción de nitrógeno en la proteína
B14: FracNPR | C14: 0.16 | D14: Kg N/Kg proteína
B15: Fuente: IPCC 1996, página 6.25
B17: Factor de emisión por excretas humanas
B19: EF6 | C19: 0.01 | D19: kgCH4/kgDBO
B20: Fuente: IPCC 1996, página 6.25

Sheet Emisiones GEI 6B2a
B2: Estimación de metano generado por el tratamiento de aguas residuales domésticas
B4: Sector | C4: Desechos
B5: Categoría | C5: Aguas residuales domésticas
B6: Código de categoría | C6: 6B2a
B12: A | C12: B | D12: C | E12: D | F12: E | G12: F | H12: G | I12: H | J12: I | K12: J | L12: K | M12: L | N12: M | O12: N | P12: O
B13: Región - EPS | C13: Población con alcantarillado (1,000 personas) | D13: Componente orgánico degradable (kg DBO/1000 personas/año) | E13: Fracción del componente orgánico degradable removido como lodo | F13: Total del componente orgánico del agua residual doméstica residual/comercial (kg DBO/año) | G13: Total del componente orgánico del lodo doméstico/comercial (kg DBO/año) | H13: Sistemas de manejo de aguas residuales | I13: Fracción de agua residual tratada por el sistema de manejo | J13: Factor de conversión de metano para el sistema de manejo | K13: Fracción real de metano | L13: Capacidad máxima de producción de metano (kg CH4/kg DBO) | M13: Factor de emisión para aguas residuales domésticas (kg CH4/kg DBO) | N13: Emisiones de metano sin recuperación o quema (Kg CH4) | O13: Metano recuperado o quemado (Kg CH4) | P13: Emisiones netas de metano (Gg CH4)
F14: E = [ B x C x (1 - D) ] | G14: F = ( B x C x D ) | K14: J = (H x I ) | M14: L = (J x K) | N14: M = (E x L) | P14: K = (M - N)/1 000 000
B15: ='InfoProc 6B2a'!C6& "- " & 'InfoBase 6B2a'!D18 -> Amazonas- EMUSAP Amazonas | C15: ='InfoProc 6B2a'!F6 -> 18.596 | D15: ='InfoProc 6B2a'!$C$61 -> 18250 | E15: 0 | F15: =(C15*D15*(1-E15)) -> 339377 | G15: =C15*D15*E15 -> 0 | I15: ='InfoProc 6B2a'!E6 -> 0 | J15: ='FE 6B2'!C4 -> 0.8 | K15: =I15*J15 -> 0 | L15: ='FE 6B2'!C9 -> 0.6 | M15: =K15*L15 -> 0 | N15: =F15*M15 -> 0 | P15: =(N15-O15)/1000000 -> 0
B16: ='InfoProc 6B2a'!C7& "- " & 'InfoBase 6B2a'!D19 -> Amazonas- EPSSMU S.R.Ltda. | C16: ='InfoProc 6B2a'!F7 -> 21.397 | D16: ='InfoProc 6B2a'!$C$61 -> 18250 | E16: 0 | F16: =(C16*D16*(1-E16)) -> 390495.25 | G16: =C16*D16*E16 -> 0 | I16: ='InfoProc 6B2a'!E7 -> 0 | J16: ='FE 6B2'!C4 -> 0.8 | K16: =I16*J16 -> 0 | L16: ='FE 6B2'!C9 -> 0.6 | M16: =K16*L16 -> 0 | N16: 0 | P16: =(N16-O16)/1000000 -> 0
B17: ='InfoProc 6B2a'!C8& "- " & 'InfoBase 6B2a'!D20 -> Amazonas- EMAPAB S.R.LTDA. | C17: ='InfoProc 6B2a'!F8 -> 14.231 | D17: ='InfoProc 6B2a'!$C$61 -> 18250 | E17: 0 | F17: 259715.75 | G17: 0 | I17: ='InfoProc 6B2a'!E8 -> 0 | J17: ='FE 6B2'!C4 -> 0.8 | K17: =I17*J17 -> 0 | L17: ='FE 6B2'!C9 -> 0.6 | M17: 0 | N17: 0 | P17: 0
B18: ='InfoProc 6B2a'!C9& "- " & 'InfoBase 6B2a'!D21 -> Áncash- SEDACHIMBOTE S.A. | C18: ='InfoProc 6B2a'!F9 -> 329.036 | D18: ='InfoProc 6B2a'!$C$61 -> 18250 | E18: 0 | F18: =(C18*D18*(1-E18)) -> 6004907 | G18: =C18*D18*E18 -> 0 | I18: ='InfoProc 6B2a'!E9 -> 0.5636 | J18: ='FE 6B2'!C4 -> 0.8 | K18: =I18*J18 -> 0.45088 | L18: ='FE 6B2'!C9 -> 0.6 | M18: 0.270528 | N18: 1624495.481 | P18: 1.624495481
B19: ='InfoProc 6B2a'!C10& "- " & 'InfoBase 6B2a'!D22 -> Áncash- EPS CHAVIN S.A. | C19: ='InfoProc 6B2a'!F10 -> 92.281 | D19: ='InfoProc 6B2a'!$C$61 -> 18250 | E19: 0 | F19: 1684128.25 | G19: 0 | I19: ='InfoProc 6B2a'!E10 -> 0 | J19: ='FE 6B2'!C4 -> 0.8 | K19: 0 | L19: ='FE 6B2'!C9 -> 0.6 | M19: 0 | N19: 0 | P19: 0
B20: ='InfoProc 6B2a'!C11& "- " & 'InfoBase 6B2a'!D23 -> Apurímac- EMUSAP ABANCAY S.A. | C20: ='InfoProc 6B2a'!F11 -> 42.01 | D20: ='InfoProc 6B2a'!$C$61 -> 18250 | E20: 0 | F20: 766682.5 | G20: 0 | I20: ='InfoProc 6B2a'!E11 -> 0 | J20: ='FE 6B2'!C4 -> 0.8 | K20: 0 | L20: ='FE 6B2'!C9 -> 0.6 | M20: 0 | N20: 0 | P20: 0
B21: ='InfoProc 6B2a'!C12& "- " & 'InfoBase 6B2a'!D24 -> Apurímac- EMSAP CHANKA S.R.L. | C21: ='InfoProc 6B2a'!F12 -> 16.308 | D21: ='InfoProc 6B2a'!$C$61 -> 18250 | E21: 0 | F21: 297621 | G21: 0 | I21: ='InfoProc 6B2a'!E12 -> 0 | J21: ='FE 6B2'!C4 -> 0.8 | K21: 0 | L21: ='FE 6B2'!C9 -> 0.6 | M21: 0 | N21: 0 | P21: 0
B22: ='InfoProc 6B2a'!C13& "- " & 'InfoBase 6B2a'!D25 -> Arequipa- SEDAPAR S.R.L. (Rioja) | C22: ='InfoProc 6B2a'!F13 -> 9.428 | D22: ='InfoProc 6B2a'!$C$61 -> 18250 | E22: 0 | F22: 172061 | G22: 0 | I22: ='InfoProc 6B2a'!E13 -> 0 | J22: ='FE 6B2'!C4 -> 0.8 | K22: 0 | L22: ='FE 6B2'!C9 -> 0.6 | M22: 0 | N22: 0 | P22: 0
B23: ='InfoProc 6B2a'!C14& "- " & 'InfoBase 6B2a'!D26 -> Ayacucho- EPSASA | C23: ='InfoProc 6B2a'!F14 -> 177.695 | D23: ='InfoProc 6B2a'!$C$61 -> 18250 | E23: 0 | F23: 3242933.75 | G23: 0 | I23: ='InfoProc 6B2a'!E14 -> 0.9998 | J23: ='FE 6B2'!C4 -> 0.8 | K23: 0.79984 | L23: ='FE 6B2'!C9 -> 0.6 | M23: 0.479904 | N23: 1556296.878 | P23: 1.556296878
B24: ='InfoProc 6B2a'!C15& "- " & 'InfoBase 6B2a'!D27 -> Cajamarca- SEDACAJ S.A. | C24: ='InfoProc 6B2a'!F15 -> 146.686 | D24: ='InfoProc 6B2a'!$C$61 -> 18250 | E24: 0 | F24: 2677019.5 | G24: 0 | I24: ='InfoProc 6B2a'!E15 -> 0 | J24: ='FE 6B2'!C4 -> 0.8 | K24: 0 | L24: ='FE 6B2'!C9 -> 0.6 | M24: 0 | N24: 0 | P24: 0
B25: ='InfoProc 6B2a'!C16& "- " & 'InfoBase 6B2a'!D28 -> Cajamarca- EPS MARAÑON S.R.L. | C25: ='InfoProc 6B2a'!F16 -> 46.615 | D25: ='InfoProc 6B2a'!$C$61 -> 18250 | E25: 0 | F25: 850723.75 | G25: 0 | I25: ='InfoProc 6B2a'!E16 -> 0.9601 | J25: ='FE 6B2'!C4 -> 0.8 | K25: 0.76808 | L25: ='FE 6B2'!C9 -> 0.6 | M25: 0.460848 | N25: 392054.3387 | P25: 0.3920543387
B26: ='InfoProc 6B2a'!C17& "- " & 'InfoBase 6B2a'!D29 -> Cerro de Pasco- EMAPA Pasco S.A. | C26: ='InfoProc 6B2a'!F17 -> 43.957 | D26: ='InfoProc 6B2a'!$C$61 -> 18250 | E26: 0 | F26: 802215.25 | G26: 0 | I26: ='InfoProc 6B2a'!E17 -> 0 | J26: ='FE 6B2'!C4 -> 0.8 | K26: 0 | L26: ='FE 6B2'!C9 -> 0.6 | M26: 0 | N26: 0 | P26: 0
B27: ='InfoProc 6B2a'!C18& "- " & 'InfoBase 6B2a'!D30 -> Cusco- SEDACUSCO S.A. | C27: ='InfoProc 6B2a'!F18 -> 361.569 | D27: ='InfoProc 6B2a'!$C$61 -> 18250 | E27: 0 | F27: 6598634.25 | G27: 0 | I27: ='InfoProc 6B2a'!E18 -> 0.9385 | J27: ='FE 6B2'!C4 -> 0.8 | K27: 0.7508 | L27: ='FE 6B2'!C9 -> 0.6 | M27: 0.45048 | N27: 2972552.757 | P27: 2.972552757
B28: ='InfoProc 6B2a'!C19& "- " & 'InfoBase 6B2a'!D31 -> Cusco- EMAQ S.R.LTDA. | C28: ='InfoProc 6B2a'!F19 -> 19.122 | D28: ='InfoProc 6B2a'!$C$61 -> 18250 | E28: 0 | F28: 348976.5 | G28: 0 | I28: ='InfoProc 6B2a'!E19 -> 0 | J28: ='FE 6B2'!C4 -> 0.8 | K28: 0 | L28: ='FE 6B2'!C9 -> 0.6 | M28: 0 | N28: 0 | P28: 0
B29: ='InfoProc 6B2a'!C20& "- " & 'InfoBase 6B2a'!D32 -> Cusco- EMPSSAPAL S.A. | C29: ='InfoProc 6B2a'!F20 -> 43.313 | D29: ='InfoProc 6B2a'!$C$61 -> 18250 | E29: 0 | F29: 790462.25 | G29: 0 | I29: ='InfoProc 6B2a'!E20 -> 0 | J29: ='FE 6B2'!C4 -> 0.8 | K29: 0 | L29: ='FE 6B2'!C9 -> 0.6 | M29: 0 | N29: 0 | P29: 0
B30: ='InfoProc 6B2a'!C21& "- " & 'InfoBase 6B2a'!D33 -> Cusco- EMSAPA CALCA S.R.L. | C30: ='InfoProc 6B2a'!F21 -> 10.705 | D30: ='InfoProc 6B2a'!$C$61 -> 18250 | E30: 0 | F30: 195366.25 | G30: 0 | I30: ='InfoProc 6B2a'!E21 -> 0 | J30: ='FE 6B2'!C4 -> 0.8 | K30: 0 | L30: ='FE 6B2'!C9 -> 0.6 | M30: 0 | N30: 0 | P30: 0
B31: ='InfoProc 6B2a'!C22& "- " & 'InfoBase 6B2a'!D34 -> Huancavelica- EMAPA HUANCAVELICA S.A.C | C31: ='InfoProc 6B2a'!F22 -> 27.2 | D31: ='InfoProc 6B2a'!$C$61 -> 18250 | E31: 0 | F31: 496400 | G31: 0 | I31: ='InfoProc 6B2a'!E22 -> 0 | J31: ='FE 6B2'!C4 -> 0.8 | K31: 0 | L31: ='FE 6B2'!C9 -> 0.6 | M31: 0 | N31: 0 | P31: 0
B32: ='InfoProc 6B2a'!C23& "- " & 'InfoBase 6B2a'!D35 -> Huánuco- SEDA Huánuco S.A. | C32: ='InfoProc 6B2a'!F23 -> 173.058 | D32: ='InfoProc 6B2a'!$C$61 -> 18250 | E32: 0 | F32: 3158308.5 | G32: 0 | I32: ='InfoProc 6B2a'!E23 -> 0 | J32: ='FE 6B2'!C4 -> 0.8 | K32: 0 | L32: ='FE 6B2'!C9 -> 0.6 | M32: 0 | N32: 0 | P32: 0
B33: ='InfoProc 6B2a'!C24& "- " & 'InfoBase 6B2a'!D36 -> Ica- EMAPISCO S.A. | C33: ='InfoProc 6B2a'!F24 -> 72.382 | D33: ='InfoProc 6B2a'!$C$61 -> 18250 | E33: 0 | F33: 1320971.5 | G33: 0 | I33: ='InfoProc 6B2a'!E24 -> 1 | J33: ='FE 6B2'!C4 -> 0.8 | K33: 0.8 | L33: ='FE 6B2'!C9 -> 0.6 | M33: 0.48 | N33: 634066.32 | P33: 0.63406632
B34: ='InfoProc 6B2a'!C25& "- " & 'InfoBase 6B2a'!D37 -> Ica- EMAPAVIGS S.A.C. | C34: ='InfoProc 6B2a'!F25 -> 27.405 | D34: ='InfoProc 6B2a'!$C$61 -> 18250 | E34: 0 | F34: 500141.25 | G34: 0 | I34: ='InfoProc 6B2a'!E25 -> 0.9191 | J34: ='FE 6B2'!C4 -> 0.8 | K34: 0.73528 | L34: ='FE 6B2'!C9 -> 0.6 | M34: 0.441168 | N34: 220646.315 | P34: 0.220646315
B35: ='InfoProc 6B2a'!C26& "- " & 'InfoBase 6B2a'!D38 -> Ica- SEMAPACH S.A. | C35: ='InfoProc 6B2a'!F26 -> 140.448 | D35: ='InfoProc 6B2a'!$C$61 -> 18250 | E35: 0 | F35: 2563176 | G35: 0 | I35: ='InfoProc 6B2a'!E26 -> 0.9977 | J35: ='FE 6B2'!C4 -> 0.8 | K35: 0.79816 | L35: ='FE 6B2'!C9 -> 0.6 | M35: 0.478896 | N35: 1227494.734 | P35: 1.227494734
B36: ='InfoProc 6B2a'!C27& "- " & 'InfoBase 6B2a'!D39 -> Ica- EMAPICA S.A. | C36: ='InfoProc 6B2a'!F27 -> 165.905 | D36: ='InfoProc 6B2a'!$C$61 -> 18250 | E36: 0 | F36: 3027766.25 | G36: 0 | I36: ='InfoProc 6B2a'!E27 -> 0.9997 | J36: ='FE 6B2'!C4 -> 0.8 | K36: 0.79976 | L36: ='FE 6B2'!C9 -> 0.6 | M36: 0.479856 | N36: 1452891.802 | P36: 1.452891802
B37: ='InfoProc 6B2a'!C28& "- " & 'InfoBase 6B2a'!D40 -> Junín- EPS Selva Central S.A. | C37: ='InfoProc 6B2a'!F28 -> 44.942 | D37: ='InfoProc 6B2a'!$C$61 -> 18250 | E37: 0 | F37: 820191.5 | G37: 0 | I37: ='InfoProc 6B2a'!E28 -> 0.2543 | J37: ='FE 6B2'!C4 -> 0.8 | K37: 0.20344 | L37: ='FE 6B2'!C9 -> 0.6 | M37: 0.122064 | N37: 100115.8553 | P37: 0.1001158553
B38: ='InfoProc 6B2a'!C29& "- " & 'InfoBase 6B2a'!D41 -> Junín- EPS SIERRA CENTRAL S.R.L. | C38: ='InfoProc 6B2a'!F29 -> 33.927 | D38: ='InfoProc 6B2a'!$C$61 -> 18250 | E38: 0 | F38: 619167.75 | G38: 0 | I38: ='InfoProc 6B2a'!E29 -> 0 | J38: ='FE 6B2'!C4 -> 0.8 | K38: 0 | L38: ='FE 6B2'!C9 -> 0.6 | M38: 0 | N38: 0 | P38: 0
B39: ='InfoProc 6B2a'!C30& "- " & 'InfoBase 6B2a'!D42 -> Junín- EPS MANTARO S.A. | C39: ='InfoProc 6B2a'!F30 -> 43.344 | D39: ='InfoProc 6B2a'!$C$61 -> 18250 | E39: 0 | F39: 791028 | G39: 0 | I39: ='InfoProc 6B2a'!E30 -> 0.7730142857 | J39: ='FE 6B2'!C4 -> 0.8 | K39: 0.6184114286 | L39: ='FE 6B2'!C9 -> 0.6 | M39: 0.3710468571 | N39: 293508.4533 | P39: 0.2935084533
B40: ='InfoProc 6B2a'!C31& "- " & 'InfoBase 6B2a'!D43 -> Junín- SEDAM HUANCAYO S.A.C. | C40: ='InfoProc 6B2a'!F31 -> 256.874 | D40: ='InfoProc 6B2a'!$C$61 -> 18250 | E40: 0 | F40: 4687950.5 | G40: 0 | I40: ='InfoProc 6B2a'!E31 -> 0 | J40: ='FE 6B2'!C4 -> 0.8 | K40: 0 | L40: ='FE 6B2'!C9 -> 0.6 | M40: 0 | N40: 0 | P40: 0
B41: ='InfoProc 6B2a'!C32& "- " & 'InfoBase 6B2a'!D44 -> Junín- EMSAPA YAULI S.RL.L. | C41: ='InfoProc 6B2a'!F32 -> 8.31 | D41: ='InfoProc 6B2a'!$C$61 -> 18250 | E41: 0 | F41: 151657.5 | G41: 0 | I41: ='InfoProc 6B2a'!E32 -> 0 | J41: ='FE 6B2'!C4 -> 0.8 | K41: 0 | L41: ='FE 6B2'!C9 -> 0.6 | M41: 0 | N41: 0 | P41: 0
B42: ='InfoProc 6B2a'!C33& "- " & 'InfoBase 6B2a'!D45 -> La Libertad- SEDALIB S.A. | C42: ='InfoProc 6B2a'!F33 -> 717.866 | D42: ='InfoProc 6B2a'!$C$61 -> 18250 | E42: 0 | F42: 13101054.5 | G42: 0 | I42: ='InfoProc 6B2a'!E33 -> 0.5818 | J42: ='FE 6B2'!C4 -> 0.8 | K42: 0.46544 | L42: ='FE 6B2'!C9 -> 0.6 | M42: 0.279264 | N42: 3658652.884 | P42: 3.658652884
B43: ='InfoProc 6B2a'!C34& "- " & 'InfoBase 6B2a'!D46 -> Lambayeque- EPSEL S.A. | C43: ='InfoProc 6B2a'!F34 -> 687.072 | D43: ='InfoProc 6B2a'!$C$61 -> 18250 | E43: 0 | F43: 12539064 | G43: 0 | I43: ='InfoProc 6B2a'!E34 -> 0.9058 | J43: ='FE 6B2'!C4 -> 0.8 | K43: 0.72464 | L43: ='FE 6B2'!C9 -> 0.6 | M43: 0.434784 | N43: 5451784.402 | P43: 5.451784402
B44: ='InfoProc 6B2a'!C35& "- " & 'InfoBase 6B2a'!D47 -> Lima- EMAPA Cañete S.A. | C44: ='InfoProc 6B2a'!F35 -> 106.776 | D44: ='InfoProc 6B2a'!$C$61 -> 18250 | E44: 0 | F44: 1948662 | G44: 0 | I44: ='InfoProc 6B2a'!E35 -> 0.0863 | J44: ='FE 6B2'!C4 -> 0.8 | K44: 0.06904 | L44: ='FE 6B2'!C9 -> 0.6 | M44: 0.041424 | N44: 80721.37469 | P44: =(N44-O44)/1000000 -> 0.08072137469
B45: ='InfoProc 6B2a'!C36& "- " & 'InfoBase 6B2a'!D48 -> Lima- EMAPA HUARAL S.A. | C45: ='InfoProc 6B2a'!F36 -> 58.155 | D45: ='InfoProc 6B2a'!$C$61 -> 18250 | E45: 0 | F45: 1061328.75 | G45: 0 | I45: ='InfoProc 6B2a'!E36 -> 0 | J45: ='FE 6B2'!C4 -> 0.8 | K45: 0 | L45: ='FE 6B2'!C9 -> 0.6 | M45: 0 | N45: 0 | P45: 0
B46: ='InfoProc 6B2a'!C37& "- " & 'InfoBase 6B2a'!D49 -> Lima- EMAPA HUACHO S.A. | C46: ='InfoProc 6B2a'!F37 -> 104.212 | D46: ='InfoProc 6B2a'!$C$61 -> 18250 | E46: 0 | F46: 1901869 | G46: 0 | I46: ='InfoProc 6B2a'!E37 -> 0 | J46: ='FE 6B2'!C4 -> 0.8 | K46: 0 | L46: ='FE 6B2'!C9 -> 0.6 | M46: 0 | N46: 0 | P46: 0
B47: ='InfoProc 6B2a'!C38& "- " & 'InfoBase 6B2a'!D50 -> Lima- SEDAPAL S.A. | C47: ='InfoProc 6B2a'!F38 -> 8270.375 | D47: ='InfoProc 6B2a'!$C$61 -> 18250 | E47: 0 | F47: 150934343.8 | G47: 0 | I47: ='InfoProc 6B2a'!E38 -> 0.2127 | J47: ='FE 6B2'!C4 -> 0.8 | K47: 0.17016 | L47: ='FE 6B2'!C9 -> 0.6 | M47: 0.102096 | N47: =F47*M47 -> 15409792.76 | P47: 15.40979276
B48: ='InfoProc 6B2a'!C39& "- " & 'InfoBase 6B2a'!D51 -> Lima- SEMAPA BARRANCA S.A. | C48: ='InfoProc 6B2a'!F39 -> 57.48 | D48: ='InfoProc 6B2a'!$C$61 -> 18250 | E48: 0 | F48: 1049010 | G48: 0 | I48: ='InfoProc 6B2a'!E39 -> 0 | J48: ='FE 6B2'!C4 -> 0.8 | K48: 0 | L48: ='FE 6B2'!C9 -> 0.6 | M48: 0 | N48: 0 | P48: 0
B49: ='InfoProc 6B2a'!C40& "- " & 'InfoBase 6B2a'!D52 -> Loreto- EPS SEDALORETO S.A. | C49: ='InfoProc 6B2a'!F40 -> 240.747 | D49: ='InfoProc 6B2a'!$C$61 -> 18250 | E49: 0 | F49: 4393632.75 | G49: 0 | I49: ='InfoProc 6B2a'!E40 -> 0 | J49: ='FE 6B2'!C4 -> 0.8 | K49: 0 | L49: ='FE 6B2'!C9 -> 0.6 | M49: 0 | N49: 0 | P49: 0
B50: ='InfoProc 6B2a'!C41& "- " & 'InfoBase 6B2a'!D53 -> Madre de Dios- EMAPAT S.R.Ltda. | C50: ='InfoProc 6B2a'!F41 -> 31.812 | D50: ='InfoProc 6B2a'!$C$61 -> 18250 | E50: 0 | F50: 580569 | G50: 0 | I50: ='InfoProc 6B2a'!E41 -> 0 | J50: ='FE 6B2'!C4 -> 0.8 | K50: 0 | L50: ='FE 6B2'!C9 -> 0.6 | M50: 0 | N50: 0 | P50: 0
B51: ='InfoProc 6B2a'!C42& "- " & 'InfoBase 6B2a'!D54 -> Moquegua- EPS MOQUEGUA S.A. | C51: ='InfoProc 6B2a'!F42 -> 44.965 | D51: ='InfoProc 6B2a'!$C$61 -> 18250 | E51: 0 | F51: 820611.25 | G51: 0 | I51: ='InfoProc 6B2a'!E42 -> 0.5182 | J51: ='FE 6B2'!C4 -> 0.8 | K51: 0.41456 | L51: ='FE 6B2'!C9 -> 0.6 | M51: 0.248736 | N51: 204115.5599 | P51: 0.2041155599
B52: ='InfoProc 6B2a'!C43& "- " & 'InfoBase 6B2a'!D55 -> Moquegua- EPS ILO S.A. | C52: ='InfoProc 6B2a'!F43 -> 61.472 | D52: ='InfoProc 6B2a'!$C$61 -> 18250 | E52: 0 | F52: 1121864 | G52: 0 | I52: ='InfoProc 6B2a'!E43 -> 0.1483 | J52: ='FE 6B2'!C4 -> 0.8 | K52: 0.11864 | L52: ='FE 6B2'!C9 -> 0.6 | M52: 0.071184 | N52: 79858.76698 | P52: 0.07985876698
B53: ='InfoProc 6B2a'!C44& "- " & 'InfoBase 6B2a'!D56 -> Piura- EPS GRAU S.A. | C53: ='InfoProc 6B2a'!F44 -> 754.616 | D53: ='InfoProc 6B2a'!$C$61 -> 18250 | E53: 0 | F53: 13771742 | G53: 0 | I53: ='InfoProc 6B2a'!E44 -> 0.4547 | J53: ='FE 6B2'!C4 -> 0.8 | K53: 0.36376 | L53: ='FE 6B2'!C9 -> 0.6 | M53: 0.218256 | N53: 3005765.322 | P53: 3.005765322
B54: ='InfoProc 6B2a'!C45& "- " & 'InfoBase 6B2a'!D57 -> Puno- EMSA Puno S.A. | C54: ='InfoProc 6B2a'!F45 -> 144.976 | D54: ='InfoProc 6B2a'!$C$61 -> 18250 | E54: 0 | F54: 2645812 | G54: 0 | I54: ='InfoProc 6B2a'!E45 -> 0.5922 | J54: ='FE 6B2'!C4 -> 0.8 | K54: 0.47376 | L54: ='FE 6B2'!C9 -> 0.6 | M54: 0.284256 | N54: 752087.9359 | P54: 0.7520879359
B55: ='InfoProc 6B2a'!C46& "- " & 'InfoBase 6B2a'!D58 -> Puno- EMAPA Y S.R.L. | C55: ='InfoProc 6B2a'!F46 -> 9.085 | D55: ='InfoProc 6B2a'!$C$61 -> 18250 | E55: 0 | F55: 165801.25 | G55: 0 | I55: ='InfoProc 6B2a'!E46 -> 0 | J55: ='FE 6B2'!C4 -> 0.8 | K55: 0 | L55: ='FE 6B2'!C9 -> 0.6 | M55: 0 | N55: 0 | P55: 0
B56: ='InfoProc 6B2a'!C47& "- " & 'InfoBase 6B2a'!D59 -> Puno- EPS NOR PUNO S.A. | C56: ='InfoProc 6B2a'!F47 -> 16.932 | D56: ='InfoProc 6B2a'!$C$61 -> 18250 | E56: 0 | F56: 309009 | G56: 0 | I56: ='InfoProc 6B2a'!E47 -> 0.451 | J56: ='FE 6B2'!C4 -> 0.8 | K56: 0.3608 | L56: ='FE 6B2'!C9 -> 0.6 | M56: 0.21648 | N56: 66894.26832 | P56: 0.06689426832
B57: ='InfoProc 6B2a'!C48& "- " & 'InfoBase 6B2a'!D60 -> Puno- SEDAJULIACA S.A. | C57: ='InfoProc 6B2a'!F48 -> 200.604 | D57: ='InfoProc 6B2a'!$C$61 -> 18250 | E57: 0 | F57: 3661023 | G57: 0 | I57: ='InfoProc 6B2a'!E48 -> 0.5376 | J57: ='FE 6B2'!C4 -> 0.8 | K57: 0.43008 | L57: ='FE 6B2'!C9 -> 0.6 | M57: 0.258048 | N57: 944719.6631 | P57: 0.9447196631
B58: ='InfoProc 6B2a'!C49& "- " & 'InfoBase 6B2a'!D61 -> Puno- EPS AGUAS DEL ALTIPLANO | C58: ='InfoProc 6B2a'!F49 -> 19.671 | D58: ='InfoProc 6B2a'!$C$61 -> 18250 | E58: 0 | F58: 358995.75 | G58: 0 | I58: ='InfoProc 6B2a'!E49 -> 0.3793 | J58: ='FE 6B2'!C4 -> 0.8 | K58: 0.30344 | L58: ='FE 6B2'!C9 -> 0.6 | M58: 0.182064 | N58: 65360.20223 | P58: 0.06536020223
B59: ='InfoProc 6B2a'!C50& "- " & 'InfoBase 6B2a'!D62 -> San Martín- EMAPA San Martín S.A. | C59: ='InfoProc 6B2a'!F50 -> 132.242 | D59: ='InfoProc 6B2a'!$C$61 -> 18250 | E59: 0 | F59: 2413416.5 | G59: 0 | I59: ='InfoProc 6B2a'!E50 -> 0 | J59: ='FE 6B2'!C4 -> 0.8 | K59: 0 | L59: ='FE 6B2'!C9 -> 0.6 | M59: 0 | N59: 0 | P59: 0
B60: ='InfoProc 6B2a'!C51& "- " & 'InfoBase 6B2a'!D63 -> San Martín- EMAPA MOYOBAMBA S.R.LTDA. | C60: ='InfoProc 6B2a'!F51 -> 32.878 | D60: ='InfoProc 6B2a'!$C$61 -> 18250 | E60: 0 | F60: 600023.5 | G60: 0 | I60: ='InfoProc 6B2a'!E51 -> 0 | J60: ='FE 6B2'!C4 -> 0.8 | K60: 0 | L60: ='FE 6B2'!C9 -> 0.6 | M60: 0 | N60: 0 | P60: 0
B61: ='InfoProc 6B2a'!C52& "- " & 'InfoBase 6B2a'!D64 -> San Martín- SEDAPAR S.A. | C61: ='InfoProc 6B2a'!F52 -> 823.513 | D61: ='InfoProc 6B2a'!$C$61 -> 18250 | E61: 0 | F61: 15029112.25 | G61: 0 | I61: ='InfoProc 6B2a'!E52 -> 0.1497 | J61: ='FE 6B2'!C4 -> 0.8 | K61: 0.11976 | L61: ='FE 6B2'!C9 -> 0.6 | M61: 0.071856 | N61: 1079931.89 | P61: 1.07993189
B62: ='InfoProc 6B2a'!C53& "- " & 'InfoBase 6B2a'!D65 -> Tacna- EPS TACNA S.A. | C62: ='InfoProc 6B2a'!F53 -> 254.034 | D62: ='InfoProc 6B2a'!$C$61 -> 18250 | E62: 0 | F62: 4636120.5 | G62: 0 | I62: ='InfoProc 6B2a'!E53 -> 0.7747 | J62: ='FE 6B2'!C4 -> 0.8 | K62: 0.61976 | L62: ='FE 6B2'!C9 -> 0.6 | M62: 0.371856 | N62: 1723969.225 | P62: 1.723969225
B63: ='InfoProc 6B2a'!C54& "- " & 'InfoBase 6B2a'!D66 -> Tumbes- Aguas de Tumbes | C63: ='InfoProc 6B2a'!F54 -> 99.98 | D63: ='InfoProc 6B2a'!$C$61 -> 18250 | E63: 0 | F63: 1824635 | G63: 0 | I63: ='InfoProc 6B2a'!E54 -> 0.2609 | J63: ='FE 6B2'!C4 -> 0.8 | K63: 0.20872 | L63: ='FE 6B2'!C9 -> 0.6 | M63: 0.125232 | N63: 228502.6903 | P63: 0.2285026903
B64: ='InfoProc 6B2a'!C55& "- " & 'InfoBase 6B2a'!D67 -> Ucayali- EMAPACOP S.A. | C64: ='InfoProc 6B2a'!F55 -> 135.996 | D64: ='InfoProc 6B2a'!$C$61 -> 18250 | E64: 0 | F64: 2481927 | G64: 0 | I64: ='InfoProc 6B2a'!E55 -> 0 | J64: ='FE 6B2'!C4 -> 0.8 | K64: 0 | L64: ='FE 6B2'!C9 -> 0.6 | M64: =K64*L64 -> 0 | N64: 0 | P64: 0
O65: Total: | P65: =SUM(P15:P64) -> 43.22627988

Sheet Emisiones GEI 6B2b
B2: Estimación de óxido nitroso generado por excretas humanas
B4: Sector | C4: Desechos
B5: Categoría | C5: Aguas residuales domésticas
B6: Código de categoría | C6: 6B2b
B8: Fuente de residuos sólidos | C8: A | D8: B | E8: C | F8: D | G8: E | H8: F | I8: G | J8: H
C9: Consumo per-cápita de proteínas (Kg proteína/persona/año) | D9: Población (número) | E9: Fracción de Nitrógeno en la proteína (Kg N/Kg proteína) | F9: Cantidad de N en las excretas producidas (Kg N/año) | G9: Cantidad de N en la orina (Kg N/año) | H9: Cantidad neta de N en la orina producida (Kg N/año) | I9: Factor de Emisión (Kg N2O-N/Kg N en el excremento producido) | J9: Total Anual de Emisiones de N2O (Gg N2O/año)
F10: D = A x B x C | H10: F = D - E | J10: H = (F x G) x (44/28) / 1 000 000
B11: Total Perú | C11: ='InfoBase 6B2b'!D17/'Prop. y Fact. de conversión'!C17*365 -> 24.455 | D11: ='InfoBase 6B2b (población)'!D18 -> 30135875 | E11: ='FE 6B2'!C14 -> 0.16 | F11: =C11*D11*E11 -> 117915651.7 | G11: 0 | H11: =F11-G11 -> 117915651.7 | I11: ='FE 6B2'!C19 -> 0.01 | J11: =(H11*I11)*(44/28)/1000000 -> 1.852960241

Sheet Resultados INGEI
B2: Inventario de emisiones de gases de efecto invernadero para sector Desechos - 2012
B4: Código de categorías de fuentes 1996* | F4: Categorías de fuentes y sumideros | G4: Dióxido de carbono [GgCO2] | H4: Metano [MgCH4] | I4: Óxido nitroso [MgN2O] | J4: Emisiones de GEI [GgCO2e]
B5: 6 | F5: Desechos | G5: =G6+G8 -> 0 | H5: =H6+H8 -> 43226.27988 | I5: 1852.960241 | J5: =J6+J8 -> 1482.1696
C6: 6A | F6: Disposición de residuos sólidos | G6: =SUM(G7) -> 0
D7: 6A1 | F7: Residuos sólidos
C8: 6B | F8: Tratamiento de aguas residuales | G8: =SUM(G9:G10) -> 0 | H8: =SUM(H9:H10) -> 43226.27988 | I8: =SUM(I9:I10) -> 1852.960241 | J8: =SUM(J9:J10) -> 1482.1696
D9: 6B1 | F9: Efluentes industriales
D10: 6B2 | F10: Tratamiento y eliminación de aguas residuales domésticas | G10: =SUM(G11:G12) -> 0 | H10: =SUM(H11:H12) -> 43226.27988 | I10: 1852.960241 | J10: 1482.1696
E11: 6B2a | F11: Aguas residuales domésticas | G11: 0 | H11: ='Emisiones GEI 6B2a'!P65*1000 -> 43226.27988 | I11: 0 | J11: =ROUND(G11+H11*21/1000+I11*310/1000,4) -> 907.7519
E12: 6B2b | F12: Excretas humanas | G12: 0 | H12: 0 | I12: ='Emisiones GEI 6B2b'!J11*1000 -> 1852.960241 | J12: 574.4177
B13: * Han sido creadas para el INGEI 6A1, 6B2a y 6B2b (ver hoja de caracterización)
